bitfinex/quotes_BTCUSD_20250211
["timestamp","ask_amount","ask_price","bid_price","bid_amount"]
[1739291566893,1.05485803,96667.0,96666.0,96.45631908]
[1739291567119,1.05485803,96667.0,96666.0,96.55882273]
[1739291568594,1.05285803,96667.0,96666.0,96.55182273]
[1739291568812,1.05385803,96667.0,96666.0,96.55882273]
[1739291569009,1.05385803,96667.0,96666.0,96.70182273]
[1739291569418,1.05485803,96667.0,96666.0,96.60631908]
[1739291569623,1.05285803,96667.0,96666.0,96.59931908]
[1739291570037,1.05385803,96667.0,96666.0,96.60631908]
[1739291571044,1.05385803,96667.0,96666.0,96.56231907]
[1739291571482,1.05285803,96667.0,96666.0,96.55531907]
[1739291571807,1.05385803,96667.0,96666.0,96.66482272]
[1739291572002,0.80995035,96667.0,96666.0,96.65782272]
[1739291572411,0.81095035,96667.0,96666.0,96.66482272]
[1739291572618,0.81095035,96667.0,96666.0,96.55531907]
[1739291573095,0.81195035,96667.0,96666.0,96.56231907]
[1739291573300,0.80995035,96667.0,96666.0,96.55531907]
[1739291574624,0.81095035,96667.0,96666.0,96.56231907]
[1739291576020,0.81095035,96667.0,96666.0,96.51831906]
[1739291576388,0.81095035,96667.0,96666.0,96.62082271]
[1739291577450,0.81095035,96667.0,96666.0,96.24281541]
[1739291577451,0.85765035,96667.0,96666.0,96.24281541]
[1739291577656,0.85665035,96667.0,96666.0,96.23581541]
[1739291578030,0.85765035,96667.0,96666.0,96.24281541]
[1739291578299,0.85765035,96667.0,96666.0,96.33831906]
[1739291578427,0.85865035,96667.0,96666.0,96.34531906]
[1739291578767,0.85765035,96667.0,96666.0,96.44782271]
[1739291578983,0.85665035,96667.0,96666.0,96.44082271]
[1739291579240,0.85765035,96667.0,96666.0,96.44782271]
[1739291579627,0.85765035,96667.0,96666.0,96.44582271]
[1739291580170,0.85765035,96667.0,96666.0,96.46882271]
[1739291580431,0.81095035,96667.0,96666.0,96.46882271]
[1739291580991,0.81095035,96667.0,96666.0,96.5748227]
[1739291581191,0.68728353,96667.0,96666.0,96.5748227]
[1739291581514,0.60452353,96667.0,96666.0,96.58509886]
[1739291581919,0.60352353,96667.0,96666.0,96.57809886]
[1739291582282,0.60452353,96667.0,96666.0,96.58509886]
[1739291582483,0.60352353,96667.0,96666.0,96.59902023]
[1739291582917,0.60452353,96667.0,96666.0,96.60602023]
[1739291583585,0.65252353,96667.0,96666.0,96.33051658]
[1739291583791,0.65252353,96667.0,96666.0,96.29931905]
[1739291583969,0.65252353,96667.0,96666.0,96.32231905]
[1739291584417,0.35635211,96667.0,96666.0,96.32231905]
[1739291584819,0.35535211,96667.0,96666.0,96.31531905]
[1739291584973,0.35535211,96667.0,96666.0,96.32231905]
[1739291585202,0.35535211,96667.0,96666.0,96.4248227]
[1739291585410,0.35535211,96667.0,96666.0,96.32231905]
[1739291586027,0.35535211,96667.0,96666.0,96.27831904]
[1739291587048,0.35535211,96667.0,96666.0,95.99764239]
[1739291587450,0.58802311,96667.0,96666.0,95.99764239]
[1739291588505,0.58802311,96667.0,96666.0,95.99064239]
[1739291589110,0.58802311,96667.0,96666.0,95.99364239]
[1739291589758,0.69052676,96667.0,96666.0,95.94364239]
[1739291590466,0.69052676,96667.0,96666.0,95.94064239]
[1739291590867,0.58802311,96667.0,96666.0,95.94064239]
[1739291591083,0.58802311,96667.0,96666.0,95.89664238]
[1739291592107,0.58802311,96667.0,96666.0,95.89864238]
[1739291593315,0.58802311,96667.0,96666.0,95.89664238]
[1739291595351,0.69052676,96667.0,96666.0,95.89664238]
[1739291596122,0.69052676,96667.0,96666.0,95.85264237]
[1739291597457,0.30735211,96667.0,96666.0,96.11031902]
[1739291597981,0.30735211,96667.0,96666.0,96.21282267]
[1739291598194,0.30735211,96667.0,96666.0,96.38582267]
[1739291598640,0.30735211,96667.0,96666.0,96.28331902]
[1739291598840,0.30735211,96667.0,96666.0,96.29338401]
[1739291599040,0.30735211,96667.0,96666.0,96.28331902]
[1739291599409,0.30735211,96667.0,96666.0,96.15781537]
[1739291599812,0.30735211,96667.0,96666.0,96.01481537]
[1739291600545,0.30735211,96667.0,96666.0,95.85964237]
[1739291601099,0.30735211,96667.0,96666.0,95.81564236]
[1739291601303,0.30735211,96667.0,96666.0,95.80864236]
[1739291601638,0.30735211,96667.0,96666.0,95.81364236]
[1739291601841,0.30735211,96667.0,96666.0,95.80864236]
[1739291602255,0.30735211,96667.0,96666.0,95.81564236]
[1739291602461,0.30735211,96667.0,96666.0,95.97081536]
[1739291602666,0.30735211,96667.0,96666.0,96.05219676]
[1739291602902,0.30735211,96667.0,96666.0,96.05719676]
[1739291603382,0.30735211,96667.0,96666.0,96.18270041]
[1739291604056,0.30735211,96667.0,96666.0,96.10131901]
[1739291604275,0.30714514,96667.0,96666.0,96.07831901]
[1739291605005,0.30714514,96667.0,96666.0,95.82064236]
[1739291605205,0.46231614,96667.0,96666.0,95.82064236]
[1739291605436,0.53981614,96667.0,96666.0,95.82064236]
[1739291605672,0.69111979,96667.0,96666.0,95.82064236]
[1739291606182,0.69111979,96667.0,96666.0,95.77664235]
[1739291607528,0.58861614,96667.0,96666.0,95.77664235]
[1739291608381,0.58861614,96667.0,96666.0,95.76464235]
[1739291609244,0.73861614,96667.0,96666.0,95.76464235]
[1739291609855,0.84111979,96667.0,96666.0,95.76464235]
[1739291611193,0.84111979,96667.0,96666.0,95.72064234]
[1739291611607,0.84111979,96667.0,96666.0,94.72064234]
[1739291612303,0.85135545,96667.0,96666.0,94.72064234]
[1739291612913,0.85535545,96667.0,96666.0,94.72064234]
[1739291613128,0.85135545,96667.0,96666.0,94.72064234]
[1739291613627,0.87192567,96667.0,96666.0,94.72064234]
[1739291614758,0.88508567,96667.0,96666.0,94.72064234]
[1739291615159,0.88008567,96667.0,96666.0,94.72064234]
[1739291615913,0.88408567,96667.0,96666.0,94.72064234]
[1739291616266,0.87192567,96667.0,96666.0,94.72064234]
[1739291616465,0.84611979,96667.0,96666.0,94.72064234]
[1739291617231,0.84611979,96667.0,96666.0,94.67664233]
[1739291617832,0.84111979,96667.0,96666.0,94.67664233]
[1739291618259,0.84511979,96667.0,96666.0,94.67664233]
[1739291618453,0.84111979,96667.0,96666.0,94.67664233]
[1739291619317,0.84611979,96667.0,96666.0,94.67664233]
[1739291619728,0.84111979,96667.0,96666.0,94.67664233]
[1739291619929,0.87411979,96667.0,96666.0,94.54854233]
[1739291620131,5.96263282,96667.0,96666.0,93.54854233]
[1739291620499,5.98175759,96667.0,96666.0,93.37913287]
[1739291620696,6.00558652,96667.0,96666.0,93.25103287]
[1739291620904,2.39835759,96667.0,96666.0,93.25103287]
[1739291621231,2.42818652,96667.0,96666.0,92.99546286]
[1739291621436,2.42218652,96667.0,96666.0,92.99546286]
[1739291621852,0.96258652,96667.0,96666.0,92.99546286]
[1739291622161,0.93175759,96667.0,96666.0,92.96428861]
[1739291622363,5.94675759,96667.0,96666.0,92.96428861]
[1739291622544,5.99695759,96667.0,96666.0,92.96428861]
[1739291622753,6.00166175,96667.0,96666.0,92.96428861]
[1739291623110,3.60163282,96667.0,96666.0,92.96428861]
[1739291623294,3.59463282,96667.0,96666.0,92.96428861]
[1739291623502,1.12653282,96667.0,96666.0,92.96428861]
[1739291623672,1.03781979,96667.0,96666.0,92.96428861]
[1739291623875,0.87783282,96667.0,96666.0,92.96428861]
[1739291624040,0.92083282,96667.0,96666.0,92.96428861]
[1739291624393,5.99466175,96667.0,96666.0,92.96428861]
[1739291624596,5.65016175,96667.0,96666.0,92.96428861]
[1739291624801,5.65716175,96667.0,96666.0,92.96428861]
[1739291625141,1.32591979,96667.0,96666.0,92.96428861]
[1739291625342,1.27311979,96667.0,96666.0,92.96428861]
[1739291625548,0.84111979,96667.0,96666.0,92.96428861]
[1739291625762,0.73001979,96667.0,96666.0,92.96428861]
[1739291625986,0.72181979,96667.0,96666.0,92.9202886]
[1739291626244,0.56481979,96667.0,96666.0,92.9202886]
[1739291626458,0.57181979,96667.0,96666.0,92.9202886]
[1739291627222,0.72181979,96667.0,96666.0,92.9202886]
[1739291627830,0.71481979,96667.0,96666.0,92.9202886]
[1739291628037,0.72181979,96667.0,96666.0,92.9202886]
[1739291629796,0.73001979,96667.0,96666.0,92.9202886]
[1739291629992,0.89421979,96667.0,96666.0,92.9202886]
[1739291630322,5.94421979,96667.0,96666.0,92.9202886]
[1739291630553,5.96525082,96667.0,96666.0,92.9202886]
[1739291630735,4.49865082,96667.0,96666.0,92.9202886]
[1739291630954,1.12585082,96667.0,96666.0,92.87628859]
[1739291631156,1.12585082,96667.0,96666.0,92.85607177]
[1739291631360,1.14673678,96667.0,96666.0,92.85607177]
[1739291631592,1.12585082,96667.0,96666.0,92.85607177]
[1739291631796,1.15373678,96667.0,96666.0,92.85607177]
[1739291631996,1.12797038,96667.0,96666.0,92.85607177]
[1739291632134,0.90247038,96667.0,96666.0,92.85607177]
[1739291632369,0.74913935,96667.0,96666.0,92.85607177]
[1739291632568,0.74213935,96667.0,96666.0,92.85607177]
[1739291632791,0.74913935,96667.0,96666.0,92.85607177]
[1739291633222,0.6396357,96667.0,96666.0,92.85607177]
[1739291633403,0.4896357,96667.0,96666.0,92.85607177]
[1739291634377,0.6396357,96667.0,96666.0,92.85607177]
[1739291634910,0.6466357,96667.0,96666.0,92.85607177]
[1739291635311,0.74913935,96667.0,96666.0,92.85607177]
[1739291635701,0.6466357,96667.0,96666.0,92.85607177]
[1739291636144,0.6466357,96667.0,96666.0,92.81207176]
[1739291636812,0.6396357,96667.0,96666.0,92.81207176]
[1739291637489,0.3262647,96667.0,96666.0,92.93737176]
[1739291638046,0.3262647,96667.0,96666.0,93.06287541]
[1739291638405,0.3262647,96667.0,96666.0,92.93737176]
[1739291638406,0.3272647,96667.0,96666.0,92.93737176]
[1739291638791,0.3262647,96667.0,96666.0,92.81207176]
[1739291638992,0.58393935,96667.0,96666.0,92.81407176]
[1739291639546,0.58393935,96667.0,96666.0,92.81207176]
[1739291639793,0.58493935,96667.0,96666.0,92.81207176]
[1739291640032,0.58393935,96667.0,96666.0,92.81207176]
[1739291640904,0.58593935,96667.0,96666.0,92.81207176]
[1739291641079,0.4834357,96667.0,96666.0,92.76807175]
[1739291641282,0.5140835,96667.0,96666.0,92.76807175]
[1739291641578,0.62616465,96667.0,96666.0,92.76807175]
[1739291641982,0.63382636,96667.0,96666.0,92.76807175]
[1739291642204,0.78182636,96667.0,96666.0,92.76807175]
[1739291642607,0.78282636,96667.0,96666.0,92.76807175]
[1739291642933,0.79215705,96667.0,96666.0,92.76807175]
[1739291643179,0.79415705,96667.0,96666.0,92.76807175]
[1739291643588,0.79215705,96667.0,96666.0,92.76807175]
[1739291643795,0.79515705,96667.0,96666.0,92.76807175]
[1739291644197,0.79215705,96667.0,96666.0,92.76807175]
[1739291645542,0.79515705,96667.0,96666.0,92.76807175]
[1739291646153,0.79515705,96667.0,96666.0,92.72407174]
[1739291646365,0.76450925,96667.0,96666.0,92.72407174]
[1739291647271,0.75417856,96667.0,96666.0,92.72407174]
[1739291647612,0.75117856,96667.0,96666.0,92.72407174]
[1739291647819,0.60117856,96667.0,96666.0,92.72407174]
[1739291648802,0.75417856,96667.0,96666.0,92.72407174]
[1739291649229,0.75117856,96667.0,96666.0,92.72407174]
[1739291649430,0.75317856,96667.0,96666.0,92.72407174]
[1739291650276,0.75117856,96667.0,96666.0,92.72407174]
[1739291650815,0.75417856,96667.0,96666.0,92.72407174]
[1739291651015,0.75417856,96667.0,96666.0,92.68007173]
[1739291652439,0.75117856,96667.0,96666.0,92.68007173]
[1739291652860,0.75417856,96667.0,96666.0,92.68007173]
[1739291653070,0.78417856,96667.0,96666.0,92.68007173]
[1739291653514,0.78717856,96667.0,96666.0,92.68007173]
[1739291654073,0.7584815,96667.0,96666.0,92.68007173]
[1739291654279,0.76127537,96667.0,96666.0,92.68007173]
[1739291655956,0.76127537,96667.0,96666.0,92.63607172]
[1739291656240,0.76991537,96667.0,96666.0,92.63607172]
[1739291656687,0.77757654,96667.0,96666.0,92.63607172]
[1739291656908,0.75415271,96667.0,96666.0,92.63607172]
[1739291657152,0.77330505,96667.0,96666.0,92.63607172]
[1739291657672,0.73691537,96667.0,96666.0,92.63607172]
[1739291659450,0.74691537,96667.0,96666.0,92.63607172]
[1739291660165,0.7641531,96667.0,96666.0,92.63607172]
[1739291660631,0.78330837,96667.0,96666.0,92.63607172]
[1739291660933,0.77466837,96667.0,96666.0,92.59207171]
[1739291661138,0.78326837,96667.0,96666.0,92.59207171]
[1739291662800,0.80626837,96667.0,96666.0,92.59207171]
[1739291663707,0.51790913,96667.0,96666.0,92.59207171]
[1739291664297,5.57790913,96667.0,96666.0,92.59207171]
[1739291664519,5.73070913,96667.0,96666.0,92.59207171]
[1739291665201,5.76135298,96667.0,96666.0,92.36737703]
[1739291665403,5.65245298,96667.0,96666.0,92.36737703]
[1739291665542,5.64945298,96667.0,96666.0,92.36737703]
[1739291665959,5.65645298,96667.0,96666.0,92.32337702]
[1739291666157,5.64945298,96667.0,96666.0,92.32337702]
[1739291666353,5.64945298,96667.0,96666.0,92.11675702]
[1739291666642,5.65645298,96667.0,96666.0,92.11675702]
[1739291667202,5.62580913,96667.0,96666.0,92.11675702]
[1739291667637,1.88610913,96667.0,96666.0,92.11675702]
[1739291667776,0.93870913,96667.0,96666.0,92.11675702]
[1739291667983,0.95730913,96667.0,96666.0,92.11675702]
[1739291668884,0.94870913,96667.0,96666.0,92.11675702]
[1739291669078,0.54665386,96667.0,96666.0,92.11675702]
[1739291669251,0.54965386,96667.0,96666.0,92.11675702]
[1739291669590,0.55665386,96667.0,96666.0,92.11675702]
[1739291670090,0.51275386,96667.0,96666.0,92.11675702]
[1739291671039,0.51275386,96667.0,96666.0,92.07275701]
[1739291672615,0.50575386,96667.0,96666.0,92.07275701]
[1739291672818,0.51275386,96667.0,96666.0,92.07275701]
[1739291673199,0.50415386,96667.0,96666.0,92.07275701]
[1739291673400,0.51271386,96667.0,96666.0,92.07275701]
[1739291673623,0.49571386,96667.0,96666.0,92.07275701]
[1739291673987,0.50271386,96667.0,96666.0,92.07275701]
[1739291674184,0.50571386,96667.0,96666.0,92.07275701]
[1739291674441,0.50271386,96667.0,96666.0,92.07275701]
[1739291674651,0.46115386,96667.0,96666.0,92.07275701]
[1739291674799,0.46971386,96667.0,96666.0,92.07275701]
[1739291675226,0.30069828,96667.0,96666.0,92.07275701]
[1739291676438,0.44369828,96667.0,96666.0,92.07275701]
[1739291676834,0.43603723,96667.0,96666.0,92.07275701]
[1739291677033,0.43903723,96667.0,96666.0,92.07275701]
[1739291677243,0.43603723,96667.0,96666.0,92.07275701]
[1739291677707,0.43903723,96667.0,96666.0,92.07275701]
[1739291678483,0.43603723,96667.0,96666.0,92.07275701]
[1739291678889,0.44103723,96667.0,96666.0,92.07275701]
[1739291680863,0.43603723,96667.0,96666.0,92.07275701]
[1739291681329,0.43703723,96667.0,96666.0,92.07275701]
[1739291681468,0.43603723,96667.0,96666.0,92.07275701]
[1739291681885,0.43703723,96667.0,96666.0,92.07275701]
[1739291682074,0.43603723,96667.0,96666.0,92.07275701]
[1739291683797,0.43703723,96667.0,96666.0,92.07275701]
[1739291683972,0.43603723,96667.0,96666.0,92.07275701]
[1739291684397,0.43703723,96667.0,96666.0,92.07275701]
[1739291692170,0.42746055,96667.0,96666.0,92.07275701]
[1739291693256,0.3249569,96667.0,96666.0,92.07275701]
[1739291693459,0.1749569,96667.0,96666.0,92.07275701]
[1739291693774,0.1749569,96667.0,96666.0,92.20235701]
[1739291693775,0.0197859,96667.0,96666.0,92.20235701]
[1739291694043,0.1749569,96667.0,96666.0,92.20235701]
[1739291694473,0.1739569,96667.0,96666.0,92.20235701]
[1739291695457,0.18353098,96667.0,96666.0,92.20235701]
[1739291696563,0.02835998,96667.0,96666.0,92.20235701]
[1739291697238,0.18353098,96667.0,96666.0,92.20235701]
[1739291698101,0.43603463,96667.0,96666.0,92.07275701]
[1739291698559,0.45518074,96667.0,96666.0,92.07275701]
[1739291699185,0.45518074,96667.0,96666.0,92.07255004]
[1739291699533,0.46018074,96667.0,96666.0,92.07255004]
[1739291699877,0.44103463,96667.0,96666.0,92.07255004]
[1739291700703,0.33853098,96667.0,96666.0,92.17505369]
[1739291700963,0.33353098,96667.0,96666.0,92.07255004]
[1739291701200,0.02935998,96667.0,96666.0,92.20035004]
[1739291701629,0.02835998,96667.0,96666.0,92.20035004]
[1739291701765,0.18353098,96667.0,96666.0,92.20035004]
[1739291702367,0.1739569,96667.0,96666.0,92.20035004]
[1739291702997,0.3239569,96667.0,96666.0,92.07255004]
[1739291703196,0.42646055,96667.0,96666.0,92.07255004]
[1739291703397,0.44561902,96667.0,96666.0,92.07255004]
[1739291703827,0.4551931,96667.0,96666.0,92.07255004]
[1739291704462,0.46541915,96667.0,96666.0,92.07255004]
[1739291704916,0.4601931,96667.0,96666.0,92.07255004]
[1739291705299,0.4551931,96667.0,96666.0,92.07255004]
[1739291705546,0.4611931,96667.0,96666.0,92.07255004]
[1739291705959,0.4551931,96667.0,96666.0,92.07255004]
[1739291707131,0.4551931,96667.0,96666.0,92.02855003]
[1739291707336,0.4571931,96667.0,96666.0,92.02855003]
[1739291709270,0.35468945,96667.0,96666.0,92.02855003]
[1739291709475,0.20468945,96667.0,96666.0,92.11035003]
[1739291710159,0.4571931,96667.0,96666.0,92.02855003]
[1739291710706,0.43803463,96667.0,96666.0,92.02855003]
[1739291710909,0.43603463,96667.0,96666.0,92.02855003]
[1739291711315,0.43803463,96667.0,96666.0,92.02855003]
[1739291711513,0.42646055,96667.0,96666.0,92.02855003]
[1739291711908,0.42846055,96667.0,96666.0,92.02855003]
[1739291712112,0.42846055,96667.0,96666.0,91.98455002]
[1739291712335,0.43865895,96667.0,96666.0,91.98455002]
[1739291712714,0.42846055,96667.0,96666.0,91.98455002]
[1739291712902,0.42646055,96667.0,96666.0,91.98455002]
[1739291714561,0.43246055,96667.0,96666.0,91.98455002]
[1739291714760,0.0187859,96667.0,96666.0,92.1493194]
[1739291715011,0.0187859,96667.0,96666.0,92.10675002]
[1739291715335,0.1749569,96667.0,96666.0,92.10675002]
[1739291715699,0.0197859,96667.0,96666.0,92.10675002]
[1739291716101,0.1749569,96667.0,96666.0,92.10675002]
[1739291716477,0.0187859,96667.0,96666.0,92.10675002]
[1739291717110,0.1739569,96667.0,96666.0,92.06275001]
[1739291717519,0.0187859,96667.0,96666.0,92.06275001]
[1739291717750,0.1739569,96667.0,96666.0,92.06275001]
[1739291718360,0.0187859,96667.0,96666.0,92.06275001]
[1739291718722,0.1739569,96667.0,96666.0,92.06275001]
[1739291720349,0.3239569,96667.0,96666.0,92.06275001]
[1739291722134,0.1739569,96667.0,96666.0,92.01875]
[1739291724938,0.1739569,96667.0,96666.0,91.89655]
[1739291725480,0.42646055,96667.0,96666.0,91.89655]
[1739291726109,0.44146055,96667.0,96666.0,91.89755]
[1739291726712,0.42646055,96667.0,96666.0,91.89655]
[1739291727031,0.42846055,96667.0,96666.0,91.90255]
[1739291727248,0.42846055,96667.0,96666.0,91.85854999]
[1739291727373,0.3259569,96667.0,96666.0,91.85854999]
[1739291727781,0.3259569,96667.0,96666.0,91.93414999]
[1739291728417,0.3259569,96667.0,96666.0,91.92814999]
[1739291728864,0.3259569,96667.0,96666.0,91.85254999]
[1739291729050,0.3239569,96667.0,96666.0,91.85254999]
[1739291729264,0.3259569,96667.0,96666.0,91.85354999]
[1739291730112,0.3239569,96667.0,96666.0,91.85254999]
[1739291730516,0.42646055,96667.0,96666.0,91.85254999]
[1739291731620,0.42646055,96667.0,96666.0,91.85654999]
[1739291732046,0.42646055,96667.0,96666.0,91.80854998]
[1739291732264,0.43678636,96667.0,96666.0,91.81154998]
[1739291732884,0.53048636,96667.0,96666.0,91.81154998]
[1739291733487,0.53048636,96667.0,96666.0,91.80854998]
[1739291733690,0.52848636,96667.0,96666.0,91.80854998]
[1739291734868,0.53448636,96667.0,96666.0,91.80854998]
[1739291735187,0.54148636,96667.0,96666.0,91.80954998]
[1739291735525,0.53448636,96667.0,96666.0,91.80854998]
[1739291736267,0.54248636,96667.0,96666.0,91.80954998]
[1739291737063,0.54248636,96667.0,96666.0,91.76554997]
[1739291737423,0.61938636,96667.0,96666.0,91.76554997]
[1739291738092,1.37148636,96667.0,96666.0,91.76554997]
[1739291738395,2.93798636,96667.0,96666.0,91.76554997]
[1739291738692,5.66938636,96667.0,96666.0,91.76554997]
[1739291738838,5.66138636,96667.0,96666.0,91.76454997]
[1739291739247,1.02118636,96667.0,96666.0,91.76554997]
[1739291739635,1.02818636,96667.0,96666.0,91.76554997]
[1739291739809,0.50468636,96667.0,96666.0,91.76554997]
[1739291740013,0.51468636,96667.0,96666.0,91.76554997]
[1739291740339,0.52168636,96667.0,96666.0,91.76554997]
[1739291740961,0.51468636,96667.0,96666.0,91.76554997]
[1739291741187,0.50068636,96667.0,96666.0,91.76454997]
[1739291741465,0.45922636,96667.0,96666.0,91.76454997]
[1739291741663,0.46922636,96667.0,96666.0,91.76454997]
[1739291741865,0.45522636,96667.0,96666.0,91.76454997]
[1739291742023,0.44522636,96667.0,96666.0,91.72054996]
[1739291742226,0.46422636,96667.0,96666.0,91.72054996]
[1739291742452,0.46418636,96667.0,96666.0,91.72054996]
[1739291742613,0.45718636,96667.0,96666.0,91.72054996]
[1739291742812,0.29878636,96667.0,96666.0,91.72054996]
[1739291743038,0.31418636,96667.0,96666.0,91.72054996]
[1739291743231,0.30218636,96667.0,96666.0,91.72054996]
[1739291743937,0.29378636,96667.0,96666.0,91.72054996]
[1739291744132,0.43678636,96667.0,96666.0,91.72054996]
[1739291744563,0.45078636,96667.0,96666.0,91.72054996]
[1739291745328,0.43678636,96667.0,96666.0,91.72054996]
[1739291745451,0.44278636,96667.0,96666.0,91.72054996]
[1739291745651,0.44978636,96667.0,96666.0,91.72054996]
[1739291747129,0.44978636,96667.0,96666.0,91.67654995]
[1739291749756,0.34728271,96667.0,96666.0,91.75544995]
[1739291749970,0.3369569,96667.0,96666.0,91.75544995]
[1739291750189,0.1869569,96667.0,96666.0,91.80184995]
[1739291750408,0.0317859,96667.0,96666.0,91.67654995]
[1739291750629,0.1869569,96667.0,96666.0,91.75544995]
[1739291751224,0.1809569,96667.0,96666.0,91.75544995]
[1739291751576,0.1905254,96667.0,96666.0,91.75544995]
[1739291751993,0.1865254,96667.0,96666.0,91.75544995]
[1739291752198,0.1795254,96667.0,96666.0,91.71144994]
[1739291752523,0.1785254,96667.0,96666.0,91.71144994]
[1739291752724,0.1795254,96667.0,96666.0,91.71144994]
[1739291753127,0.1805254,96667.0,96666.0,91.71144994]
[1739291754586,0.3305254,96667.0,96666.0,91.71144994]
[1739291754791,0.43302905,96667.0,96666.0,91.63254994]
[1739291755012,0.42346055,96667.0,96666.0,91.63254994]
[1739291755223,0.43182055,96667.0,96666.0,91.63254994]
[1739291755863,0.43082055,96667.0,96666.0,91.63254994]
[1739291756032,0.43282055,96667.0,96666.0,91.63254994]
[1739291756865,0.44896673,96667.0,96666.0,91.63254994]
[1739291757068,0.44896673,96667.0,96666.0,91.58854993]
[1739291757269,0.45596673,96667.0,96666.0,91.58854993]
[1739291757945,0.47896673,96667.0,96666.0,91.58854993]
[1739291758157,0.48796673,96667.0,96666.0,91.58854993]
[1739291758360,0.48753961,96667.0,96666.0,91.58854993]
[1739291758580,0.47053961,96667.0,96666.0,91.58854993]
[1739291762256,0.47053961,96667.0,96666.0,91.54454992]
[1739291763273,0.31217961,96667.0,96666.0,91.54454992]
[1739291763423,0.20967596,96667.0,96666.0,91.54454992]
[1739291763618,0.19052978,96667.0,96666.0,91.62454992]
[1739291763823,0.1809569,96667.0,96666.0,91.62454992]
[1739291764231,0.1749569,96667.0,96666.0,91.62454992]
[1739291764989,0.3249569,96667.0,96666.0,91.62454992]
[1739291766176,0.3189569,96667.0,96666.0,91.62454992]
[1739291766377,0.3229569,96667.0,96666.0,91.62454992]
[1739291766753,0.1689569,96667.0,96666.0,91.62454992]
[1739291766960,0.1689569,96667.0,96666.0,91.62554992]
[1739291767342,0.1699569,96667.0,96666.0,91.58054991]
[1739291767554,0.1699569,96667.0,96666.0,91.58154991]
[1739291767799,0.1689569,96667.0,96666.0,91.58154991]
[1739291768275,0.1709569,96667.0,96666.0,91.58454991]
[1739291768816,0.1709569,96667.0,96666.0,91.58354991]
[1739291769245,0.19971378,96667.0,96666.0,91.58354991]
[1739291772018,0.34971378,96667.0,96666.0,91.50354991]
[1739291772185,0.34971378,96667.0,96666.0,91.4595499]
[1739291772791,0.34771378,96667.0,96666.0,91.4565499]
[1739291772993,0.34971378,96667.0,96666.0,91.4565499]
[1739291773188,0.35071378,96667.0,96666.0,91.4585499]
[1739291773393,0.04354278,96667.0,96666.0,91.64105355]
[1739291773595,0.04254278,96667.0,96666.0,91.68705355]
[1739291773774,0.04254278,96667.0,96666.0,91.5845499]
[1739291773775,0.19771378,96667.0,96666.0,91.5845499]
[1739291773983,0.19971378,96667.0,96666.0,91.5865499]
[1739291774443,0.04354278,96667.0,96666.0,91.5845499]
[1739291774658,0.19871378,96667.0,96666.0,91.5845499]
[1739291774867,0.04454278,96667.0,96666.0,91.68905355]
[1739291775195,0.04454278,96667.0,96666.0,91.9697302]
[1739291775705,0.01917208,96678.0,96671.0,0.0478]
[1739291775925,0.01917208,96678.0,96672.0,0.238162]
[1739291776099,0.206858,96685.0,96674.0,0.083]
[1739291776336,0.15,96691.0,96677.0,0.155155]
[1739291776508,0.15,96691.0,96680.0,0.22718248]
[1739291776711,0.155139,96688.0,96680.0,0.22718248]
[1739291777120,0.206848,96689.0,96680.0,0.18318247]
[1739291777338,0.155144,96684.0,96680.0,0.18318247]
[1739291777685,0.001,96685.0,96680.0,0.18318247]
[1739291777878,0.206854,96687.0,96680.0,0.21319286]
[1739291778335,0.155145,96684.0,96680.0,0.22019286]
[1739291778538,0.155145,96684.0,96680.0,0.19018247]
[1739291779385,0.001,96688.0,96680.0,0.19018247]
[1739291779594,0.155147,96683.0,96680.0,0.18318247]
[1739291779957,0.001,96687.0,96680.0,0.19118247]
[1739291780108,0.155148,96682.0,96680.0,0.19118247]
[1739291780312,0.155149,96681.0,96680.0,0.18318247]
[1739291780514,0.155149,96681.0,96680.0,0.084]
[1739291780716,0.155149,96681.0,96680.0,0.091]
[1739291781125,0.155149,96681.0,96680.0,0.083]
[1739291781528,0.155149,96681.0,96680.0,0.084]
[1739291781757,0.156149,96681.0,96680.0,0.093]
[1739291782186,0.156149,96681.0,96680.0,0.04899999]
[1739291782366,0.08919065,96683.0,96680.0,0.04899999]
[1739291782567,0.206859,96684.0,96680.0,0.04899999]
[1739291782769,0.155149,96681.0,96680.0,0.04899999]
[1739291783117,0.155149,96681.0,96680.0,0.04799999]
[1739291783491,0.155149,96681.0,96680.0,0.04022385]
[1739291783698,0.155149,96681.0,96680.0,0.04980385]
[1739291783853,0.155149,96681.0,96680.0,0.05780385]
[1739291784342,0.155149,96681.0,96680.0,0.04022385]
[1739291784540,0.08270615,96674.0,96666.0,91.4358599]
[1739291784821,0.40767465,96667.0,96666.0,91.4358599]
[1739291785024,0.77040365,96667.0,96666.0,91.4358599]
[1739291786222,0.77040365,96667.0,96666.0,91.4448599]
[1739291786635,0.77040365,96667.0,96666.0,91.4358599]
[1739291786899,0.77340365,96667.0,96666.0,91.4358599]
[1739291787271,0.79401581,96667.0,96666.0,91.39285989]
[1739291787749,0.80001581,96667.0,96666.0,91.39285989]
[1739291788478,0.81910839,96667.0,96666.0,91.39285989]
[1739291788672,0.82865561,96667.0,96666.0,91.39285989]
[1739291789426,0.82037561,96667.0,96666.0,91.39285989]
[1739291789821,0.82861561,96667.0,96666.0,91.39285989]
[1739291792123,0.82861561,96667.0,96666.0,91.34885988]
[1739291794630,0.82861561,96667.0,96666.0,91.29536091]
[1739291794631,5.96551561,96667.0,96666.0,91.29536091]
[1739291794825,6.29111561,96667.0,96666.0,91.23151276]
[1739291795069,6.29111561,96667.0,96666.0,91.06287188]
[1739291795070,6.46172957,96667.0,96666.0,91.06287188]
[1739291795248,6.48824643,96667.0,96666.0,91.04887188]
[1739291795477,6.48824643,96667.0,96666.0,90.95187188]
[1739291795984,6.48824643,96667.0,96666.0,90.95087188]
[1739291796245,6.48324643,96667.0,96666.0,90.90270188]
[1739291796482,6.55914643,96667.0,96666.0,90.82170552]
[1739291796717,6.56814643,96667.0,96666.0,90.82270552]
[1739291796952,6.56214643,96667.0,96666.0,90.82270552]
[1739291797206,6.56214643,96667.0,96666.0,90.51863552]
[1739291797207,6.80176184,96667.0,96666.0,90.51863552]
[1739291797456,6.80876184,96667.0,96666.0,90.43811551]
[1739291797705,6.80176184,96667.0,96666.0,90.43811551]
[1739291797915,6.80876184,96667.0,96666.0,90.36120176]
[1739291798124,6.80176184,96667.0,96666.0,90.32032076]
[1739291798331,6.80897482,96667.0,96666.0,89.14338034]
[1739291798542,6.80897482,96667.0,96666.0,88.18277423]
[1739291798543,6.73848167,96667.0,96666.0,88.18277423]
[1739291798758,6.75248167,96667.0,96666.0,88.18277423]
[1739291798959,6.75248167,96667.0,96666.0,87.14660625]
[1739291799163,6.72814951,96667.0,96666.0,87.14660625]
[1739291799578,6.73514951,96667.0,96666.0,87.14660625]
[1739291799816,6.72814951,96667.0,96666.0,87.14660625]
[1739291800060,6.74214951,96667.0,96666.0,87.14660625]
[1739291800256,6.74914951,96667.0,96666.0,87.14660625]
[1739291801093,6.71772902,96667.0,96666.0,87.14660625]
[1739291801533,7.84182902,96667.0,96666.0,85.62282005]
[1739291801740,4.76768156,96667.0,96666.0,77.82296137]
[1739291801948,5.22082774,96667.0,96666.0,75.18615162]